fUSD/lending_fUSD_20251220
["ID","MTS","AMOUNT","RATE_DAILY","PERIOD"]
[399245542,1766201445076,-581.0,0.00016165,2]
[399245543,1766201445086,-151.21834691,0.00016165,2]
[399245544,1766201445096,-353.74835527,0.00016165,2]
[399245545,1766201445108,-500.0,0.00016165,2]
[399245546,1766201445216,-500.0,0.00016165,2]
[399245547,1766201445225,-151.13258847,0.00016165,2]
[399245548,1766201445236,-160.47,0.00016169,2]
[399245549,1766201445248,-32591.20521854,0.00016179,2]
[399245550,1766201445258,-42389.71247181,0.00016179,2]
[399245551,1766201445267,-351.184,0.0001619,2]
[399245552,1766201445277,-6435.382,0.0001619,2]
[399245553,1766201445287,-60109.32951532,0.000162,5]
[399245554,1766201445299,-162.03877535,0.000163,2]
[399245555,1766201445310,-500.29716194,0.000163,2]
[399245556,1766201445320,-500.0,0.000163,2]
[399245557,1766201445329,-500.0,0.000163,2]
[399245558,1766201445338,-500.0,0.000163,2]
[399245559,1766201445348,-500.0,0.000163,2]
[399245560,1766201445357,-570.20028222,0.000163,2]
[399245561,1766201445366,-162.35722153,0.000163,2]
[399245562,1766201445375,-555.87900727,0.000163,2]
[399245563,1766201445385,-334.5464899,0.000163,2]
[399245564,1766201445396,-500.0,0.000163,2]
[399245565,1766201445405,-500.0,0.000163,2]
[399245566,1766201445414,-330.6916765,0.000163,2]
[399245567,1766201445424,-500.0,0.000163,2]
[399245568,1766201445434,-500.30081252,0.000163,2]
[399245569,1766201445445,-452.09330567,0.000163,2]
[399245570,1766201445454,-500.0,0.000163,2]
[399245571,1766201445464,-168.09419939,0.000163,2]
[399245572,1766201445473,-500.48687625,0.000163,2]
[399245573,1766201445482,-500.0,0.000163,2]
[399245574,1766201445491,-500.0,0.000163,2]
[399245575,1766201445500,-500.0,0.000163,2]
[399245576,1766201445509,-500.33069287,0.000163,2]
[399245577,1766201445518,-500.0,0.000163,2]
[399245578,1766201445529,-518.77690272,0.000163,2]
[399245579,1766201445538,-500.0,0.000163,2]
[399245580,1766201445547,-500.0,0.000163,2]
[399245581,1766201445556,-590.13268338,0.000163,2]
[399245582,1766201445565,-500.21661931,0.000163,2]
[399245583,1766201445575,-500.0,0.000163,2]
[399245584,1766201445587,-500.0,0.000163,2]
[399245585,1766201445596,-500.0,0.000163,2]
[399245586,1766201445605,-426.51211002,0.000163,2]
[399245587,1766201445614,-500.59670517,0.000163,2]
[399245588,1766201445625,-500.0,0.000163,2]
[399245589,1766201445635,-162.24077786,0.000163,2]
[399245590,1766201445644,-500.0,0.000163,2]
[399245591,1766201445654,-500.34670783,0.000163,2]
[399245592,1766201445663,-500.0,0.000163,2]
[399245593,1766201445672,-500.4308882,0.000163,2]
[399245594,1766201445682,-500.0,0.000163,2]
[399245595,1766201445691,-500.5692733,0.000163,2]
[399245596,1766201445701,-500.0,0.000163,2]
[399245597,1766201445710,-500.19600128,0.000163,2]
[399245598,1766201445720,-500.5161197,0.000163,2]
[399245599,1766201445729,-500.0,0.000163,2]
[399245600,1766201445738,-500.0,0.000163,2]
[399245601,1766201445748,-177.2862913,0.000163,2]
[399245603,1766201445757,-500.36669311,0.000163,2]
[399245604,1766201445766,-500.0,0.000163,2]
[399245605,1766201445775,-220.27121476,0.000163,2]
[399245606,1766201445784,-500.0,0.000163,2]
[399245607,1766201445793,-500.0,0.000163,2]
[399245608,1766201445802,-500.0,0.000163,2]
[399245609,1766201445811,-500.0,0.000163,2]
[399245610,1766201445820,-529.96646376,0.000163,2]
[399245611,1766201445830,-166.91561833,0.000163,2]
[399245612,1766201445839,-500.0,0.000163,2]
[399245613,1766201445848,-500.0,0.000163,2]
[399245614,1766201445858,-516.37835686,0.000163,2]
[399245615,1766201445868,-500.0,0.000163,2]
[399245616,1766201445878,-500.0,0.000163,2]
[399245617,1766201445887,-161.07996631,0.000163,2]
[399245618,1766201445897,-500.0,0.000163,2]
[399245619,1766201445906,-468.55909228,0.000163,2]
[399245620,1766201445915,-500.0,0.000163,2]
[399245621,1766201445926,-500.45922425,0.000163,2]
[399245622,1766201445936,-500.0,0.000163,2]
[399245623,1766201445945,-523.00588269,0.000163,2]
[399245624,1766201445955,-500.16141079,0.000163,2]
[399245625,1766201445964,-168.56959317,0.000163,2]
[399245626,1766201445974,-159.43095819,0.000163,2]
[399245627,1766201445983,-500.0,0.00016302,2]
[399245628,1766201445992,-500.0,0.00016302,2]
[399245629,1766201446001,-1693.0,0.00016302,2]
[399245630,1766201446011,-154.04785046,0.00016302,2]
[399245631,1766201446020,-382.97899023,0.00016302,2]
[399245632,1766201446029,-602.86533629,0.00016302,2]
[399245633,1766201446039,-150.0,0.00016302,2]
[399245634,1766201446048,-150.0,0.00016302,2]
[399245635,1766201446058,-151.82870014,0.00016302,2]
[399245636,1766201446067,-500.0,0.00016302,2]
[399245637,1766201446077,-434.0,0.00016302,2]
[399245638,1766201446086,-150.0,0.00016302,2]
[399245639,1766201446095,-500.0,0.00016302,2]
[399245640,1766201446104,-482.01458536,0.00016302,2]
[399245641,1766201446114,-471.0,0.00016302,2]
[399245642,1766201446123,-720.0,0.00016302,2]
[399245643,1766201446133,-500.0,0.00016302,2]
[399245644,1766201446142,-554.0,0.00016302,2]
[399245645,1766201446151,-1222.0,0.00016302,2]
[399245646,1766201446160,-724.0,0.00016302,2]
[399245647,1766201446169,-500.0,0.00016302,2]
[399245648,1766201446179,-500.0,0.00016302,2]
[399245649,1766201446188,-500.0,0.00016302,2]
[399245650,1766201446197,-497.0,0.00016302,2]
[399245651,1766201446206,-500.0,0.00016302,2]
[399245652,1766201446215,-581.0,0.00016302,2]
[399245653,1766201446225,-500.0,0.00016302,2]
[399245654,1766201446235,-500.0,0.00016302,2]
[399245655,1766201446245,-536.0,0.00016325,2]
[399245656,1766201446254,-2218.72,0.00016354,2]
[399245657,1766201446265,-228.0,0.000164,2]
[399245658,1766201446274,-319.0,0.000164,2]
[399245659,1766201446284,-182.0,0.000164,2]
[399245660,1766201446293,-183.63284637,0.000164,2]
[399245661,1766201446303,-1009.0,0.000164,2]
[399245662,1766201446312,-33491.4068,0.00016412,2]
[399245663,1766201446321,-338.28459543,0.00016414,2]
[399245664,1766201446330,-510.00208829,0.00016414,2]
[399245665,1766201446339,-734.94435391,0.00016414,2]
[399245666,1766201446349,-272.20622186,0.00016414,2]
[399245667,1766201446358,-500.0,0.00016437,2]
[399245668,1766201446367,-500.0,0.00016437,2]
[399245669,1766201446376,-150.0,0.00016438,2]
[399245670,1766201446385,-500.0,0.00016438,2]
[399245671,1766201446395,-500.0,0.00016438,2]
[399245672,1766201446404,-500.0,0.00016438,2]
[399245673,1766201446414,-500.0,0.00016438,2]
[399245674,1766201446423,-500.0,0.00016438,2]
[399245675,1766201446433,-500.0,0.00016438,2]
[399245676,1766201446442,-500.0,0.00016438,2]
[399245677,1766201446451,-500.0,0.00016438,2]
[399245678,1766201446461,-500.0,0.00016438,2]
[399245679,1766201446471,-500.0,0.00016438,2]
[399245680,1766201446480,-500.0,0.00016438,2]
[399245681,1766201446490,-500.0,0.00016438,2]
[399245682,1766201446499,-500.0,0.00016438,2]
[399245683,1766201446508,-500.0,0.00016438,2]
[399245684,1766201446518,-500.0,0.00016438,2]
[399245685,1766201446527,-500.0,0.00016438,2]
[399245686,1766201446536,-500.0,0.00016438,2]
[399245687,1766201446546,-500.0,0.00016438,2]
[399245688,1766201446555,-500.0,0.00016438,2]
[399245689,1766201446565,-500.0,0.00016438,2]
[399245690,1766201446575,-500.0,0.00016438,2]
[399245691,1766201446587,-500.0,0.00016438,2]
[399245692,1766201446596,-500.0,0.00016438,2]
[399245693,1766201446606,-500.0,0.00016438,2]
[399245694,1766201446616,-500.0,0.00016438,2]
[399245695,1766201446626,-500.0,0.00016438,2]
[399245696,1766201446635,-500.0,0.00016438,2]
[399245697,1766201446644,-500.0,0.00016438,2]
[399245698,1766201446655,-500.0,0.00016438,2]
[399245699,1766201446664,-500.0,0.00016438,2]
[399245700,1766201446673,-500.0,0.00016438,2]
[399245701,1766201446682,-500.0,0.00016438,2]
[399245702,1766201446691,-500.0,0.00016438,2]
[399245703,1766201446700,-500.0,0.00016438,2]
[399245704,1766201446710,-500.0,0.00016438,2]
[399245705,1766201446719,-500.0,0.00016438,2]
[399245706,1766201446728,-500.0,0.00016438,2]
[399245707,1766201446737,-500.0,0.00016438,2]
[399245708,1766201446746,-500.0,0.00016438,2]
[399245709,1766201446756,-500.0,0.00016438,2]
[399245710,1766201446765,-500.0,0.00016438,2]
[399245711,1766201446774,-155.73726922,0.00016438,2]
[399245712,1766201446783,-500.0,0.00016438,2]
[399245713,1766201446792,-500.0,0.00016438,2]
[399245714,1766201446801,-500.0,0.00016438,2]
[399245715,1766201446811,-500.0,0.00016438,2]
[399245716,1766201446820,-500.0,0.00016438,2]
[399245717,1766201446830,-500.0,0.00016438,2]
[399245718,1766201446839,-500.0,0.00016438,2]
[399245719,1766201446849,-500.0,0.00016438,2]
[399245720,1766201446858,-500.0,0.00016438,2]
[399245721,1766201446867,-500.0,0.00016438,2]
[399245722,1766201446877,-500.0,0.00016438,2]
[399245723,1766201446886,-500.0,0.00016438,2]
[399245724,1766201446895,-500.0,0.00016438,2]
[399245725,1766201446905,-500.0,0.00016438,2]
[399245726,1766201446914,-613.0378285,0.00016438,2]
[399245727,1766201446923,-613.0378285,0.00016438,2]
[399245728,1766201446932,-613.0378285,0.00016438,2]
[399245729,1766201446942,-613.0378285,0.00016438,2]
[399245730,1766201446951,-613.0378285,0.00016438,2]
[399245731,1766201446960,-613.0378285,0.00016438,2]
[399245732,1766201446969,-613.0378285,0.00016438,2]
[399245733,1766201446978,-613.0378285,0.00016438,2]
[399245734,1766201446987,-613.0378285,0.00016438,2]
[399245735,1766201446997,-613.0378285,0.00016438,2]
[399245736,1766201447006,-613.0378285,0.00016438,2]
[399245737,1766201447014,-613.0378285,0.00016438,2]
[399245738,1766201447023,-613.0378285,0.00016438,2]
[399245739,1766201447032,-613.0378285,0.00016438,2]
[399245740,1766201447041,-500.0,0.00016438,2]
[399245741,1766201447050,-613.0378285,0.00016438,2]
[399245742,1766201447059,-613.0378285,0.00016438,2]
[399245743,1766201447068,-613.0378285,0.00016438,2]
[399245744,1766201447078,-613.0378285,0.00016438,2]
[399245745,1766201447087,-613.0378285,0.00016438,2]
[399245746,1766201447096,-613.0378285,0.00016438,2]
[399245747,1766201447105,-613.0378285,0.00016438,2]
[399245748,1766201447114,-613.0378285,0.00016438,2]
[399245749,1766201447123,-613.0378285,0.00016438,2]
[399245750,1766201447132,-613.0378285,0.00016438,2]
[399245751,1766201447141,-500.0,0.00016438,2]
[399245752,1766201447150,-613.0378285,0.00016438,2]
[399245753,1766201447159,-613.0378285,0.00016438,2]
[399245754,1766201447168,-613.0378285,0.00016438,2]
[399245755,1766201447177,-613.0378285,0.00016438,2]
[399245756,1766201447186,-613.0378285,0.00016438,2]
[399245757,1766201447195,-613.0378285,0.00016438,2]
[399245758,1766201447204,-613.0378285,0.00016438,2]
[399245759,1766201447213,-613.0378285,0.00016438,2]
[399245760,1766201447223,-500.0,0.00016438,2]
[399245761,1766201447233,-613.0378285,0.00016438,2]
[399245762,1766201447243,-613.0378285,0.00016438,2]
[399245763,1766201447252,-613.0378285,0.00016438,2]
[399245764,1766201447261,-613.0378285,0.00016438,2]
[399245765,1766201447271,-613.0378285,0.00016438,2]
[399245766,1766201447281,-613.0378285,0.00016438,2]
[399245767,1766201447291,-613.0378285,0.00016438,2]
[399245768,1766201447300,-500.0,0.00016438,2]
[399245769,1766201447308,-613.0378284,0.00016438,2]
[399245770,1766201447317,-3000.71,0.00016438,2]
[399245771,1766201447327,-13014.42,0.00016438,2]
[399245772,1766201447336,-800.62641417,0.00016438,2]
[399245773,1766201447345,-370.18922892,0.00016439,2]
[399245774,1766201447354,-259.12567119,0.00016439,2]
[399245775,1766201447363,-1693.0,0.00016439,2]
[399245776,1766201447372,-201.41286545,0.00016439,2]
[399245777,1766201447382,-164.23762974,0.00016439,2]
[399245778,1766201447391,-500.0,0.00016439,2]
[399245779,1766201447400,-434.0,0.00016439,2]
[399245780,1766201447408,-150.0,0.00016439,2]
[399245781,1766201447418,-500.0,0.00016439,2]
[399245782,1766201447427,-471.0,0.00016439,2]
[399245783,1766201447436,-720.0,0.00016439,2]
[399245784,1766201447445,-500.0,0.00016439,2]
[399245785,1766201447454,-554.0,0.00016439,2]
[399245786,1766201447463,-1222.0,0.00016439,2]
[399245787,1766201447472,-724.0,0.00016439,2]
[399245788,1766201447482,-500.0,0.00016439,2]
[399245789,1766201447492,-500.0,0.00016439,2]
[399245790,1766201447501,-500.0,0.00016439,2]
[399245791,1766201447511,-497.0,0.00016439,2]
[399245792,1766201447520,-500.0,0.00016439,2]
[399245793,1766201447529,-581.0,0.00016439,2]
[399245794,1766201447537,-500.0,0.00016439,2]
[399245795,1766201447547,-500.0,0.00016439,2]
[399245796,1766201447556,-164.41,0.0001644,2]
[399245797,1766201447565,-164.41,0.0001644,2]
[399245798,1766201447575,-164.41,0.0001644,2]
[399245799,1766201447590,-164.41,0.0001644,2]
[399245800,1766201447599,-164.41,0.0001644,2]
[399245801,1766201447608,-164.41,0.0001644,2]
[399245802,1766201447619,-164.41,0.0001644,2]
[399245803,1766201447628,-164.41,0.0001644,2]
[399245804,1766201447637,-900.0,0.00016469,2]
[399245805,1766201447647,-3109.34995974,0.00016512,2]
[399245806,1766201447656,-3000.0,0.00016512,2]
[399245807,1766201447665,-200.0,0.00016533,2]
[399245808,1766201447675,-500.0,0.00016533,2]
[399245809,1766201447684,-200.0,0.00016533,2]
[399245810,1766201447693,-151.0,0.00016539,2]
[399245811,1766201447701,-595.37131296,0.00016539,2]
[399245812,1766201447710,-1075.369,0.00016539,2]
[399245813,1766201447719,-150.0,0.00016575,2]
[399245814,1766201447728,-500.0,0.00016575,2]
[399245815,1766201447737,-1693.0,0.00016576,2]
[399245816,1766201447746,-500.0,0.00016576,2]
[399245817,1766201447755,-434.0,0.00016576,2]
[399245818,1766201447765,-217.93510683,0.00016576,2]
[399245819,1766201447774,-500.0,0.00016576,2]
[399245820,1766201447787,-471.0,0.00016576,2]
[399245821,1766201447797,-720.0,0.00016576,2]
[399245822,1766201447807,-500.0,0.00016576,2]
[399245823,1766201447816,-1222.0,0.00016576,2]
[399245824,1766201447825,-554.0,0.00016576,2]
[399245825,1766201447835,-724.0,0.00016576,2]
[399245826,1766201447844,-500.0,0.00016576,2]
[399245827,1766201447853,-235.87516781,0.00016576,2]
[399245828,1766201447863,-296.5190321,0.00016576,2]
[399245829,1766201447872,-497.0,0.00016576,2]
[399245830,1766201447882,-500.0,0.00016576,2]
[399245831,1766201447891,-581.0,0.00016576,2]
[399245832,1766201447900,-500.0,0.00016576,2]
[399245833,1766201447910,-500.0,0.00016576,2]
[399245834,1766201447919,-358.62936828,0.000166,2]
[399245835,1766201447930,-2218.72,0.00016628,2]
[399245836,1766201447939,-16861.23441335,0.0001666,2]
[399245837,1766201447948,-200.99029627,0.00016712,2]
[399245838,1766201447957,-500.0,0.00016712,2]
[399245839,1766201447967,-1693.0,0.00016713,2]
[399245840,1766201447979,-500.0,0.00016713,2]
[399245841,1766201447989,-434.0,0.00016713,2]
[399245842,1766201447998,-500.0,0.00016713,2]
[399245843,1766201448007,-471.0,0.00016713,2]
[399245844,1766201448017,-720.0,0.00016713,2]
[399245845,1766201448026,-500.0,0.00016713,2]
[399245846,1766201448036,-1222.0,0.00016713,2]
[399245847,1766201448046,-554.0,0.00016713,2]
[399245848,1766201448055,-724.0,0.00016713,2]
[399245849,1766201448065,-237.16668933,0.00016713,2]
[399245850,1766201448075,-497.0,0.00016713,2]
[399245851,1766201448084,-500.0,0.00016713,2]
[399245852,1766201448093,-581.0,0.00016713,2]
[399245853,1766201448103,-500.0,0.00016713,2]
[399245854,1766201448112,-500.0,0.00016713,2]
[399245855,1766201448122,-536.0,0.00016729,2]
[399245856,1766201448132,-204.73014904,0.00016777,2]
[399245857,1766201448141,-894.91811465,0.00016778,2]
[399245858,1766201448150,-536.0,0.00016787,2]
[399245859,1766201448159,-846.45332019,0.0001683,2]
[399245860,1766201448169,-430.48862467,0.00016836,2]
[399245861,1766201448181,-510.18,0.00016838,2]
[399245862,1766201448191,-536.0,0.00016846,2]
[399245863,1766201448200,-1000.87754816,0.00016848,2]
[399245864,1766201448209,-500.65137842,0.00016848,2]
[399245865,1766201448219,-1000.0,0.00016848,2]
[399245866,1766201448228,-1001.13256122,0.00016848,2]
[399245867,1766201448237,-1001.39291005,0.00016848,2]
[399245868,1766201448246,-1001.04078122,0.00016848,2]
[399245869,1766201448258,-1000.0,0.00016848,2]
[399245870,1766201448267,-1001.31913615,0.00016848,2]
[399245871,1766201448276,-1001.19540644,0.00016848,2]
[399245872,1766201448286,-1000.0,0.00016848,2]
[399245873,1766201448295,-1000.76703223,0.00016848,2]
[399245874,1766201448304,-1000.0,0.00016848,2]
[399245875,1766201448315,-1001.0574546,0.00016848,2]
[399245876,1766201448324,-1000.0,0.00016848,2]
[399245877,1766201448334,-1001.02020729,0.00016848,2]
[399245878,1766201448343,-1001.01249642,0.00016848,2]
[399245879,1766201448353,-1001.0881382,0.00016848,2]
[399245880,1766201448362,-1001.04801864,0.00016848,2]
[399245881,1766201448374,-1000.87355102,0.00016848,2]
[399245882,1766201448384,-1002.26047729,0.00016848,2]
[399245883,1766201448393,-179.47316237,0.00016848,2]
[399245884,1766201448403,-221.90485079,0.00016848,2]
[399245885,1766201448413,-500.58632088,0.00016848,2]
[399245886,1766201448423,-1001.1215833,0.00016848,2]
[399245887,1766201448432,-1000.0,0.00016848,2]
[399245888,1766201448442,-1000.0,0.00016848,2]
[399245889,1766201448451,-1000.0,0.00016848,2]
[399245890,1766201448461,-501.13881872,0.00016848,2]
[399245892,1766201448470,-1000.9465121,0.00016848,2]
[399245893,1766201448479,-998.88830841,0.00016848,2]
[399245894,1766201448488,-1000.0,0.00016848,2]
[399245895,1766201448497,-1000.83354161,0.00016848,2]
[399245896,1766201448508,-1000.0,0.00016848,2]
[399245897,1766201448518,-1001.82577211,0.00016848,2]
[399245898,1766201448529,-1000.866265,0.00016848,2]
[399245899,1766201448539,-1000.0,0.00016848,2]
[399245900,1766201448547,-500.0,0.00016849,2]
[399245901,1766201448556,-1693.0,0.0001685,2]
[399245902,1766201448566,-500.0,0.0001685,2]
[399245903,1766201448576,-434.0,0.0001685,2]
[399245904,1766201448590,-291.42851787,0.0001685,2]
[399245905,1766201448599,-471.0,0.0001685,2]
[399245906,1766201448608,-720.0,0.0001685,2]
[399245907,1766201448619,-500.0,0.0001685,2]
[399245908,1766201448628,-1222.0,0.0001685,2]
[399245909,1766201448637,-554.0,0.0001685,2]
[399245910,1766201448646,-724.0,0.0001685,2]
[399245911,1766201448658,-497.0,0.0001685,2]
[399245912,1766201448667,-500.0,0.0001685,2]
[399245913,1766201448676,-581.0,0.0001685,2]
[399245914,1766201448686,-500.0,0.0001685,2]
[399245915,1766201448695,-500.0,0.0001685,2]
[399245916,1766201448704,-200.0,0.00016863,2]
[399245917,1766201448714,-200.0,0.00016864,2]
[399245918,1766201448723,-510.18,0.00016899,2]
[399245919,1766201448732,-6773.0744,0.000169,2]
[399245920,1766201448742,-32591.20521854,0.000169,2]
[399245921,1766201448752,-42389.71247181,0.000169,2]
[399245922,1766201448761,-338.28459543,0.000169,2]
[399245923,1766201448770,-510.00208829,0.000169,2]
[399245924,1766201448779,-734.94435391,0.000169,2]
[399245925,1766201448788,-640.24104381,0.000169,2]
[399245926,1766201448797,-272.20622186,0.000169,2]
[399245927,1766201448807,-500.0,0.000169,2]
[399245928,1766201448816,-500.0,0.000169,2]
[399245929,1766201448826,-500.0,0.000169,2]
[399245930,1766201448835,-500.0,0.000169,2]
[399245931,1766201448844,-500.0,0.000169,2]
[399245932,1766201448853,-500.0,0.000169,2]
[399245933,1766201448864,-500.0,0.000169,2]
[399245934,1766201448883,-500.0,0.000169,2]
[399245935,1766201448893,-500.0,0.000169,2]
[399245936,1766201448902,-500.0,0.000169,2]
[399245937,1766201448911,-500.0,0.000169,2]
[399245938,1766201448921,-500.0,0.000169,2]
[399245939,1766201448930,-500.0,0.000169,2]
[399245940,1766201448939,-500.0,0.000169,2]
[399245941,1766201448948,-500.0,0.000169,2]
[399245942,1766201448957,-500.0,0.000169,2]
[399245943,1766201448967,-500.0,0.000169,2]
[399245944,1766201448977,-500.0,0.000169,2]
[399245945,1766201448995,-500.0,0.000169,2]
[399245946,1766201449006,-500.0,0.000169,2]
[399245947,1766201449014,-500.0,0.000169,2]
[399245948,1766201449024,-500.0,0.000169,2]
[399245949,1766201449033,-500.0,0.000169,2]
[399245950,1766201449043,-500.0,0.000169,2]
[399245951,1766201449052,-500.0,0.000169,2]
[399245952,1766201449062,-410.0925731,0.000169,2]
[399245953,1766201449071,-12402.0,0.000169,2]
[399245954,1766201449082,-2218.72,0.00016902,2]
[399245955,1766201449092,-500.0,0.00016972,2]
[399245956,1766201449101,-500.0,0.00016972,2]
[399245957,1766201449111,-500.0,0.00016972,2]
[399245958,1766201449120,-500.0,0.00016972,2]
[399245959,1766201449129,-500.0,0.00016972,2]
[399245960,1766201449139,-500.0,0.00016972,2]
[399245961,1766201449148,-500.0,0.00016972,2]
[399245962,1766201449158,-500.0,0.00016972,2]
[399245963,1766201449168,-500.0,0.00016972,2]
[399245964,1766201449177,-322.99177949,0.00016972,2]
[399245965,1766201449186,-500.0,0.00016972,2]
[399245966,1766201449195,-500.0,0.00016972,2]
[399245967,1766201449205,-500.0,0.00016972,2]
[399245968,1766201449214,-500.0,0.00016972,2]
[399245969,1766201449224,-500.0,0.00016972,2]
[399245970,1766201449234,-500.0,0.00016972,2]
[399245971,1766201449244,-500.0,0.00016972,2]
[399245972,1766201449254,-500.0,0.00016972,2]
[399245973,1766201449436,-500.0,0.00016972,2]
[399245974,1766201449450,-500.0,0.00016972,2]
[399245975,1766201449462,-500.0,0.00016972,2]
[399245976,1766201449473,-150.10981544,0.00016973,2]
[399245977,1766201449488,-150.09235231,0.00016973,2]
[399245978,1766201449498,-163.39899626,0.00016973,2]
[399245979,1766201449509,-500.0,0.00016973,2]
[399245980,1766201449519,-150.0,0.00016973,2]
[399245981,1766201449529,-8626.9,0.00016975,2]
[399245982,1766201449539,-510.18,0.00016985,2]
[399245983,1766201449549,-510.18,0.00016985,2]
[399245984,1766201449560,-500.0,0.00016986,2]
[399245985,1766201449571,-510.18,0.00016986,2]
[399245986,1766201449586,-1693.0,0.00016987,2]
[399245987,1766201449596,-500.0,0.00016987,2]
[399245988,1766201449607,-434.0,0.00016987,2]
[399245989,1766201449616,-471.0,0.00016987,2]
[399245990,1766201449627,-720.0,0.00016987,2]
[399245991,1766201449636,-220.23803723,0.00016987,2]
[399245992,1766201449647,-1222.0,0.00016987,2]
[399245993,1766201449660,-554.0,0.00016987,2]
[399245994,1766201449672,-724.0,0.00016987,2]
[399245995,1766201449683,-497.0,0.00016987,2]
[399245996,1766201449698,-500.0,0.00016987,2]
[399245997,1766201449708,-581.0,0.00016987,2]
[399245998,1766201449717,-500.0,0.00016987,2]
[399245999,1766201449726,-500.0,0.00016987,2]
[399246000,1766201449736,-2032.51847287,0.0001699,2]
[399246001,1766201449746,-255.0,0.00016993,2]
[399246002,1766201449755,-151.0,0.00016997,2]
[399246003,1766201449764,-1500.0,0.00016998,2]
[399246004,1766201449774,-1500.0,0.00016998,2]
[399246005,1766201449784,-1527.47643038,0.00016998,2]
[399246006,1766201449793,-1019.77444314,0.00016999,5]
[399246007,1766201449802,-1019.77444314,0.00016999,5]
[399246008,1766201449812,-510.18,0.00016999,2]
[399246009,1766201449822,-510.18,0.00016999,2]
[399246010,1766201449833,-510.18,0.00016999,2]
[399246011,1766201449843,-510.18,0.00016999,2]
[399246012,1766201449853,-510.18,0.00016999,2]
[399246013,1766201449863,-510.18,0.00016999,2]
[399246014,1766201449873,-510.18,0.00016999,2]
[399246015,1766201449886,-510.18,0.00016999,2]
[399246016,1766201449895,-510.18,0.00016999,2]
[399246017,1766201449905,-510.35443283,0.00016999,2]
[399246018,1766201449915,-500.0,0.00016999,2]
[399246019,1766201449925,-500.0,0.00016999,2]
[399246020,1766201449934,-467.18251007,0.00016999,2]
[399246021,1766201449944,-500.0,0.00016999,2]
[399246022,1766201449954,-500.0,0.00016999,2]
[399246023,1766201449963,-500.0,0.00016999,2]
[399246024,1766201449973,-500.0,0.00016999,2]
[399246025,1766201449983,-500.0,0.00016999,2]
[399246026,1766201449992,-500.0,0.00016999,2]
[399246027,1766201450002,-500.0,0.00016999,2]
[399246028,1766201450012,-500.0,0.00016999,2]
[399246029,1766201450021,-500.0,0.00016999,2]
[399246030,1766201450031,-500.0,0.00016999,2]
[399246031,1766201450041,-500.0,0.00016999,2]
[399246032,1766201450051,-500.0,0.00016999,2]
[399246033,1766201450061,-500.0,0.00016999,2]
[399246034,1766201450070,-500.0,0.00016999,2]
[399246035,1766201450082,-500.0,0.00016999,2]
[399246036,1766201450092,-500.0,0.00016999,2]
[399246037,1766201450101,-500.0,0.00016999,2]
[399246038,1766201450111,-500.0,0.00016999,2]
[399246039,1766201450121,-500.0,0.00016999,2]
[399246040,1766201450130,-500.0,0.00016999,2]
[399246041,1766201450139,-500.0,0.00016999,2]
[399246042,1766201450149,-500.0,0.00016999,2]
[399246043,1766201450158,-500.0,0.00016999,2]